Cogmind - Beta 13 @@@ ROGUE MODE // 2024.05.03 @ 22:47:46 Player: Exceptionally Mediocre Result: Destroyed by G-50 Soldier with Heavy Laser Performance ------------- Evolutions (4) 2000 Regions Visited (11) 2200 Robots Destroyed (100) 500 Value Destroyed (2950) 2950 Prototype IDs (38) 760 Alien Tech Used (0) 0 Bonus (776) 776 TOTAL SCORE: 9186 Bonus ------- Follower Combat Kills 176 Aligned with FarCom 300 Met Imprinter 300 Cogmind --------- Core Integrity 0/850 Matter 295/300 Energy 159/160 System Corruption 0% Temperature Cool (9) Movement Rolling (115) Ox1 Location -5/Proximity Caves Parts ------- > --- POWER (1) -------- Light Nuclear Core > --- PROPULSION (7) --- Medium Treads Spiked Medium Treads Compact Wheel Cesium-ion Thruster Cesium-ion Thruster Xenon Bombardment Thruster > --- UTILITY (5) ------ Large Storage Unit Experimental Core Analyzer Improved Hacking Suite Experimental Hacking Suite > --- WEAPON (2) ------- Flail Longsword +1 > --- INVENTORY (15) --- Improved Deuterium Engine Light Angular Momentum Engine Huge Storage Unit 0b10 Decoder Chip [Looter] Makeshift Transmission Jammer Improved Transmission Jammer Improved Powered Armor Advanced Force Field Relay Coupler [Programmer] (75) Relay Coupler [Programmer] (88) Relay Coupler [Programmer] (82) Hacking Drone Bay (1/1) Remote Datajack Heavy Mace CR-A16's Pointy Stick Peak State ------------ > --- POWER ------------ Light Nuclear Core > --- PROPULSION ------- Medium Treads Spiked Medium Treads Compact Wheel Cesium-ion Thruster Cesium-ion Thruster Xenon Bombardment Thruster > --- UTILITY ---------- Large Storage Unit Spectral Analyzer Experimental Core Analyzer Improved Hacking Suite Experimental Hacking Suite > --- WEAPON ----------- Flail Longsword +1 > --- INVENTORY -------- Light Nuclear Core Light Nuclear Core Improved Cryofiber Web Advanced Heat Sink Huge Storage Unit 0b10 Decoder Chip [Looter] Microactuators Makeshift Transmission Jammer Relay Coupler [Programmer] Relay Coupler [Programmer] Relay Coupler [Programmer] Hacking Drone Bay Remote Datajack Heavy Mace CR-A16's Pointy Stick [Rating: 73] Favorites ----------- Power Ion Engine Engine Ion Engine Power Core Nuclear Core Propulsion Cesium-ion Thruster Treads Light Treads Wheel Compact Wheel Flight Unit Cesium-ion Thruster Utility Huge Storage Unit Device Weight Redist. System Storage Huge Storage Unit Processor Target Analyzer Hackware Improved Hacking Suite Protection Light Armor Plating Weapon Heavy Mace Energy Gun Heavy Laser Ballistic Gun Light Assault Rifle Launcher Rocket Launcher Impact Weapon Heavy Mace Slashing Weapon Longsword +1 Piercing Weapon Spear Build | -11 -10 -10 -10 -9 -8 -7 -6 -6 -6 -6 -5 ------- Run | Yrd Mat Min Exi Min Mat Fac Fac Low Low Zio Pro Slots Evolved 8 | . . . . . 4 2 2 . . . . Power . | . . . . . . . . . . . . Propulsion 5 | . . . . . 2 1 2 . . . . Utility 3 | . . . . . 2 1 . . . . . Weapon . | . . . . . . . . . . . . Parts Attached 111 | 6 3 . 2 3 45 8 13 17 . 8 6 Power 11 | 1 1 . . . 3 1 1 1 . 1 2 Engine 5 | 1 1 . . . 2 . . . . 1 . Core 6 | . . . . . 1 1 1 1 . . 2 Reactor . | . . . . . . . . . . . . Propulsion 32 | 2 . . . 1 15 2 5 5 . . 2 Treads 12 | 2 . . . 1 7 . . 2 . . . Leg . | . . . . . . . . . . . . Wheel 4 | . . . . . 3 . . 1 . . . Hover . | . . . . . . . . . . . . Flight 16 | . . . . . 5 2 5 2 . . 2 Utility 42 | 1 2 . 2 1 12 4 6 6 . 6 2 Device 10 | . . . 1 . 2 . 3 2 . 1 1 Storage 6 | 1 1 . . 1 1 . 1 1 . . . Processor 8 | . . . . . 2 . 1 1 . 4 . Hackware 5 | . . . . . . 2 . 2 . 1 . Protection 13 | . 1 . 1 . 7 2 1 . . . 1 Artifact . | . . . . . . . . . . . . Weapon 26 | 2 . . . 1 15 1 1 5 . 1 . Energy Gun 7 | . . . . . 7 . . . . . . Energy Cannon . | . . . . . . . . . . . . Ballistic Gun 8 | 2 . . . 1 5 . . . . . . Ballistic Cannon . | . . . . . . . . . . . . Launcher 1 | . . . . . 1 . . . . . . Special Weapon . | . . . . . . . . . . . . Impact Weapon 5 | . . . . . 2 1 . 2 . . . Slashing Weapon 4 | . . . . . . . 1 2 . 1 . Piercing Weapon 1 | . . . . . . . . 1 . . . Special Melee Weapon . | . . . . . . . . . . . . Unidentified Prototypes 14 | . . . 1 . 5 1 . . . 6 1 Parts Lost 38 | . . . . 1 7 3 15 9 . . 3 Power 6 | . . . . . 2 . 1 1 . . 2 Propulsion 12 | . . . . . . 1 7 4 . . . Utility 14 | . . . . . 3 2 6 2 . . 1 Weapon 6 | . . . . 1 2 . 1 2 . . . Highest Loss Streak 5 | . . . . 1 3 2 5 5 . . 1 To Critical Strikes . | . . . . . . . . . . . . Average Slot Usage (%) 88 | . 90 100 100 99 95 98 91 62 80 79 89 Engine 4 | . 14 14 14 14 5 . . . . 1 . Core 3 | . . . . . 3 7 6 5 6 4 4 Treads 13 | . 28 28 28 28 12 . . 1 13 13 13 Wheel 2 | . . . . . 4 . . . 6 6 6 Flight 13 | . . . . . 14 38 41 15 6 6 16 Device 2 | . . . . . 3 7 5 2 . . . Storage 8 | . 14 14 14 14 9 7 6 5 6 6 6 Processor 6 | . . . . . 8 5 1 12 13 12 7 Hackware 3 | . . . . . . 3 2 6 13 13 13 Protection 9 | . 4 14 14 14 14 11 12 2 . . 4 Energy Gun 1 | . . . . . 5 2 . . . . . Ballistic Gun 8 | . 28 28 28 27 8 . . . . . . Impact Weapon 5 | . . . . . 3 11 10 2 13 10 6 Slashing Weapon 1 | . . . . . . . 1 3 . 2 6 Naked Turns . | . . . . . . . . . . . . Heaviest Build 109 | 11 21 21 21 91 109 96 97 39 39 39 34 Greatest Support 80 | 40 40 40 40 40 80 31 41 56 16 16 16 Greatest Overweight (x) 36 | . . . . 2 36 3 6 8 2 2 2 Average Overweight (x) 1 | . . . . 1 1 3 2 1 2 2 1 Largest Inventory Capacity 25 | 8 10 10 10 25 25 25 25 15 15 15 15 Average Capacity 18 | 7 8 10 10 20 25 25 24 14 15 15 15 Most Carried 25 | 4 10 10 10 13 25 24 25 15 13 15 15 Average Carried 16 | 2 7 10 9 11 21 21 20 13 13 14 14 Final Capacity 25 | 8 10 10 10 25 25 25 15 15 15 15 15 Final Carried 25 | 4 10 10 10 12 25 21 14 13 13 15 15 Class Distribution -------------------- 62% | Mutant 27% | Hacker-Mutant 10% | Scavenger-Mutant Dominant Class ---------------- Mutant | -10/Materials Mutant | -10/Mines Mutant | -10/Exiles Mutant | -9/Mines Mutant | -8/Materials Mutant | -7/Factory Mutant | -6/Factory Hacker-Mutant | -6/Lower Caves Hacker-Mutant | -6/Lower Caves Hacker-Mutant | -6/Zion Hacker-Mutant | -5/Proximity Caves Resources | -11 -10 -10 -10 -9 -8 -7 -6 -6 -6 -6 -5 ----------- Run | Yrd Mat Min Exi Min Mat Fac Fac Low Low Zio Pro Matter Collected 1984 | 336 137 57 . 144 869 65 96 155 . 10 115 Remotely . | . . . . . . . . . . . . Salvage Created 4029 | 166 257 159 . 256 1412 152 736 532 . . 359 Parts 177 | 13 23 10 . 10 74 2 19 18 . . 8 Haulers Intercepted 6 | . 1 . . . 4 . . . . . 1 Recyclers Shooed 5 | . 2 . . 1 . . 2 . . . . Parts Field Recycled . | . . . . . . . . . . . . Retrieved Matter . | . . . . . . . . . . . . Parts Self-Destructed 27 | . . . . . . . . 17 . . 10 Prevented 4 | . . . . . . . . 4 . . . Kills | -11 -10 -10 -10 -9 -8 -7 -6 -6 -6 -6 -5 ------- Run | Yrd Mat Min Exi Min Mat Fac Fac Low Low Zio Pro Combat Hostiles Destroyed 68 | . 6 6 . 7 22 3 11 9 . . 4 Melee 20 | . . . . . . 2 7 7 . . 4 Guns 34 | . 6 6 . 7 15 . . . . . . AOE 4 | . . . . . 4 . . . . . . Classes Destroyed 14 | 3 4 . . 1 5 . 1 . . . . Worker 8 | 2 . 1 . . 4 . 1 . . . . Builder 4 | . . . . . 4 . . . . . . Tunneler 5 | 3 . . . 1 1 . . . . . . Hauler 6 | . 1 . . . 4 . . . . . 1 Recycler 3 | 1 . . . . 1 . 1 . . . . Operator 2 | . . . . . 1 . 1 . . . . Watcher 4 | . 1 . . . 2 . 1 . . . . Swarmer 15 | . 3 3 . 3 4 . 1 1 . . . Grunt 43 | . 3 3 . 3 13 3 8 6 . . 4 Brawler 1 | . . . . 1 . . . . . . . Duelist 2 | . . . . . 1 . . 1 . . . Sentry 5 | . . . . . 3 . 1 1 . . . Hunter 1 | . . . . . 1 . . . . . . Programmer 1 | . . . . . . . 1 . . . . Best Kill Streak 9 | 6 3 2 . 4 9 3 4 4 . . 3 Combat Bots Only 5 | . 3 2 . 3 5 3 4 4 . . 3 Max Kills in Single Turn 4 | 2 2 1 . 1 4 1 1 1 . . 1 Gunslinging . | . . . . . . . . . . . . Exploded 4 | . . . . . 4 . . . . . . Melee 1 | . . . . . . 1 1 1 . . 1 Uniques/NPCs Destroyed . | . . . . . . . . . . . . Combat | -11 -10 -10 -10 -9 -8 -7 -6 -6 -6 -6 -5 -------- Run | Yrd Mat Min Exi Min Mat Fac Fac Low Low Zio Pro Hostile Shots Fired 483 | . 20 15 . 50 166 38 84 82 . . 28 Missed 136 | . 3 4 . 13 48 10 28 24 . . 6 Damage Taken 5440 | . 167 127 . 338 1829 443 903 1157 . . 476 Core 1386 | . 17 58 . 68 265 116 176 603 . . 83 Absorbed by Shields . | . . . . . . . . . . . . Redirected to Shielding 414 | . . . . . 104 81 104 15 . . 110 Regen/Repaired (Parts) 628 | . . . . . . . . . . 628 . Core Remaining (%) 69 | 100 . . . 42 51 83 . . . . . Volleys Fired 176 | 19 30 11 . 25 91 . . . . . . Largest 2 | 2 2 2 . 2 2 . . . . . . Hottest 94 | 40 40 40 . 40 94 . . . . . . Shots Fired 350 | 38 60 22 . 49 181 . . . . . . Gun 349 | 38 60 22 . 49 180 . . . . . . Cannon . | . . . . . . . . . . . . Launcher 1 | . . . . . 1 . . . . . . Special . | . . . . . . . . . . . . Kinetic 312 | 38 60 22 . 49 143 . . . . . . Thermal 37 | . . . . . 37 . . . . . . Explosive 1 | . . . . . 1 . . . . . . Electromagnetic . | . . . . . . . . . . . . Robot Hit Streak 13 | 10 8 5 . 13 13 . . . . . . Robot Miss Streak 5 | 1 5 2 . 5 5 . . . . . . Penetration Max 1 | . . . . . 1 . . . . . . Secondary Targets 5 | . . . . 1 4 . . . . . . Max Gunslinging Chain 1 | . . . . 1 1 . . . . . . Shots Hit Robots 324 | 28 36 13 . 29 131 11 42 23 . . 11 Core Hits 119 | 9 13 10 . 14 50 1 8 9 . . 5 Critical Kills . | . . . . . . . . . . . . Critical Parts Destroyed 13 | . . . . . 6 3 2 2 . . . Critical Strikes 19 | . . . . . 8 3 3 4 . . 1 Burn 2 | . . . . . 2 . . . . . . Destroy 4 | . . . . . 4 . . . . . . Smash 9 | . . . . . 2 3 2 2 . . . Sever 3 | . . . . . . . 1 1 . . 1 Impale 1 | . . . . . . . . 1 . . . Melee Attacks 135 | . . . . . 20 18 58 27 . . 12 Impact 92 | . . . . . 20 18 39 13 . . 2 Slashing 42 | . . . . . . . 19 13 . . 10 Piercing 1 | . . . . . . . . 1 . . . Sneak Attacks 11 | . . . . . 6 . 4 . . . 1 Combat Hostiles 1 | . . . . . 1 . . . . . . Follow-up Attacks 8 | . . . . . . . 6 1 . . 1 Damage Inflicted 8098 | 271 428 135 . 328 2925 500 2070 922 . . 519 Guns 3179 | 271 428 135 . 328 2017 . . . . . . Cannons . | . . . . . . . . . . . . Explosions 193 | . . . . . 193 . . . . . . Melee 4726 | . . . . . 715 500 2070 922 . . 519 Ramming . | . . . . . . . . . . . . Kinetic 2730 | 271 428 135 . 328 1568 . . . . . . Thermal 449 | . . . . . 449 . . . . . . Explosive 193 | . . . . . 193 . . . . . . Electromagnetic . | . . . . . . . . . . . . Impact 2819 | . . . . . 715 500 1188 396 . . 20 Slashing 1876 | . . . . . . . 882 495 . . 499 Piercing 31 | . . . . . . . . 31 . . . Highest Corruption 1 | . . . . . . 1 . . . . . Average Corruption 1 | . . . . . . 1 . . . . . Corruption Purged . | . . . . . . . . . . . . Corruption Blocked . | . . . . . . . . . . . . Effects 3 | . . . . . . 3 . . . . . Matter Fused 1 | . . . . . . 1 . . . . . Heat Flow Errors 1 | . . . . . . 1 . . . . . Data Loss (minor) 1 | . . . . . . 1 . . . . . Overload Shots . | . . . . . . . . . . . . Overflow Damage 1084 | . . . . . 366 156 466 96 . . . Projectiles 11 | . . . . . 11 . . . . . . Explosions . | . . . . . . . . . . . . Melee 1073 | . . . . . 355 156 466 96 . . . Knockbacks 15 | . . . . . 1 6 7 1 . . . Impact 14 | . . . . . 1 5 7 1 . . . Kinetic . | . . . . . . . . . . . . Secondary 1 | . . . . . . 1 . . . . . Self-Inflicted Damage . | . . . . . . . . . . . . Shots . | . . . . . . . . . . . . Rammed . | . . . . . . . . . . . . Targets Rammed . | . . . . . . . . . . . . Kicked . | . . . . . . . . . . . . Crushed . | . . . . . . . . . . . . Highest Temperature 349 | . 18 20 . 24 349 112 . 9 . . . Average Temperature 41 | . 6 8 . 7 61 65 . 9 . . . Received Heat Transfer 2197 | . 66 51 . 69 999 162 342 406 . . 102 Effects 1 | . . . . . 1 . . . . . . Shutdowns 1 | . . . . . 1 . . . . . . Siege Activations . | . . . . . . . . . . . . Robots Corrupted . | . . . . . . . . . . . . Combat Hostiles . | . . . . . . . . . . . . Parts Fried 20 | . . . . . 11 1 7 1 . . . Impact Corruptions 45 | . . . . . 18 7 17 3 . . . Robots Melted . | . . . . . . . . . . . . Combat Hostiles . | . . . . . . . . . . . . Parts Melted 2 | . . . . . 2 . . . . . . Heat Transferred 1073 | . . . . . 1073 . . . . . . Parts Sabotaged . | . . . . . . . . . . . . Parts Stolen . | . . . . . . . . . . . . Parts Stripped . | . . . . . . . . . . . . Power Chain Reactions . | . . . . . . . . . . . . Alert | -11 -10 -10 -10 -9 -8 -7 -6 -6 -6 -6 -5 ------- Run | Yrd Mat Min Exi Min Mat Fac Fac Low Low Zio Pro Peak Influence 289 | 30 214 233 . 70 289 209 160 . . . . Initial 119 | . 19 83 . . 27 119 1 . . . . Average 109 | 8 129 105 . 34 158 106 48 . . . . Maximum Alert Level 1 | . 1 1 . . 1 1 . . . . . Low Security (%) 80 | 100 81 94 . 100 62 81 100 . . . . Level 1 19 | . 18 5 . . 37 18 . . . . . Level 2 . | . . . . . . . . . . . . Level 3 . | . . . . . . . . . . . . Level 4 . | . . . . . . . . . . . . Level 5 . | . . . . . . . . . . . . High Security . | . . . . . . . . . . . . Max Security . | . . . . . . . . . . . . Squads Dispatched 13 | . 1 . . . 2 3 7 . . . . Investigation 4 | . 1 . . . . 1 2 . . . . Extermination 3 | . . . . . . 2 1 . . . . Reinforcement 3 | . . . . . 2 . 1 . . . . Assault . | . . . . . . . . . . . . Garrison 3 | . . . . . . . 3 . . . . Intercept . | . . . . . . . . . . . . Searches Triggered . | . . . . . . . . . . . . Construction Impeded 1 | . . . . . 1 . . . . . . Haulers Reinforced . | . . . . . . . . . . . . Active Scanning Responses . | . . . . . . . . . . . . Cargo Convoy Interrupts . | . . . . . . . . . . . . Stealth | -11 -10 -10 -10 -9 -8 -7 -6 -6 -6 -6 -5 --------- Run | Yrd Mat Min Exi Min Mat Fac Fac Low Low Zio Pro Distress Signals 3 | . 2 . . . 1 . . . . . . Communications Jammed . | . . . . . . . . . . . . Distress Signals . | . . . . . . . . . . . . Times Spotted 104 | . 9 6 . 7 35 7 19 11 . . 10 Peak Tracking Total 6 | . 4 3 . 3 6 3 4 5 . . 5 Tactical Retreats 9 | . . 1 . . 1 2 3 . . . 2 Traps | -11 -10 -10 -10 -9 -8 -7 -6 -6 -6 -6 -5 ------- Run | Yrd Mat Min Exi Min Mat Fac Fac Low Low Zio Pro Traps Triggered 4 | . . . . . . 1 3 . . . . Indirectly . | . . . . . . . . . . . . Trap Hack Attempts . | . . . . . . . . . . . . Triggered . | . . . . . . . . . . . . Disarmed . | . . . . . . . . . . . . Reprogrammed . | . . . . . . . . . . . . Reused . | . . . . . . . . . . . . Traps Extracted . | . . . . . . . . . . . . Installed . | . . . . . . . . . . . . Triggered 3 | . . . . . . . . 2 1 . . Machines | -11 -10 -10 -10 -9 -8 -7 -6 -6 -6 -6 -5 ---------- Run | Yrd Mat Min Exi Min Mat Fac Fac Low Low Zio Pro Machines Disabled . | . . . . . . . . . . . . Max in Single Turn . | . . . . . . . . . . . . Garrison Access 3 | . . . . . 1 . 2 . . . . Machines Repaired . | . . . . . . . . . . . . Machines Dismantled . | . . . . . . . . . . . . Machines Sabotaged . | . . . . . . . . . . . . Overloaded Fab Kills . | . . . . . . . . . . . . Hacking | -11 -10 -10 -10 -9 -8 -7 -6 -6 -6 -6 -5 --------- Run | Yrd Mat Min Exi Min Mat Fac Fac Low Low Zio Pro Machines Accessed 22 | . 2 1 1 . 11 2 5 . . . . Terminals 10 | . 1 . . . 7 1 1 . . . . Fabricators 1 | . . . . . . 1 . . . . . Repair Stations 1 | . . . . . 1 . . . . . . Recycling Units 3 | . 1 . . . 1 . 1 . . . . Scanalyzers 2 | . . . . . 1 . 1 . . . . Garrison Access 3 | . . . . . 1 . 2 . . . . Total Hacks 63 | . 6 1 1 . 35 4 16 . . . . Successful 41 | . 3 1 1 . 25 2 9 . . . . Failed 22 | . 3 . . . 10 2 7 . . . . Catastrophic 3 | . 1 . . . 1 . 1 . . . . Database Lockouts . | . . . . . . . . . . . . Manual 29 | . 5 . 1 . 17 2 4 . . . . Terminals 29 | . 5 . . . 18 2 4 . . . . Fabricators 2 | . . . . . . 2 . . . . . Repair Stations 2 | . . . . . 2 . . . . . . Recycling Units 3 | . 1 . . . 1 . 1 . . . . Scanalyzers 17 | . . . . . 13 . 4 . . . . Garrison Access 8 | . . . . . 1 . 7 . . . . Terminal Hacks 6 | . 1 1 1 . 2 . 1 . . . . Prototype ID Bank 1 | . . . . . 1 . . . . . . Open Door 1 | . . 1 . . . . . . . . . Terminal Index 3 | . 1 . . . 1 . 1 . . . . Derelict Proto ID Bank 1 | . . . 1 . . . . . . . . Fabricator Hacks 2 | . . . . . . 2 . . . . . Load Schematic 1 | . . . . . . 1 . . . . . Build 1 | . . . . . . 1 . . . . . Repair Station Hacks 2 | . . . . . 2 . . . . . . Scan Component 1 | . . . . . 1 . . . . . . Repair 1 | . . . . . 1 . . . . . . Recycling Unit Hacks 3 | . 1 . . . 1 . 1 . . . . Retrieve Components 3 | . 1 . . . 1 . 1 . . . . Scanalyzer 17 | . . . . . 13 . 4 . . . . Insert Component 7 | . . . . . 5 . 2 . . . . Analyze 10 | . . . . . 8 . 2 . . . . Garrison Access Hacks 3 | . . . . . 1 . 2 . . . . Seal Access 3 | . . . . . 1 . 2 . . . . Unauthorized Hacks 8 | . 1 . . . 6 . 1 . . . . Terminals 8 | . 1 . . . 6 . 1 . . . . Botnet 8 | . 1 . . . 6 . 1 . . . . Fabricators . | . . . . . . . . . . . . Repair Stations . | . . . . . . . . . . . . Recycling Units . | . . . . . . . . . . . . Scanalyzers . | . . . . . . . . . . . . Garrison Access . | . . . . . . . . . . . . Data Cores Recovered 1 | . . . . . 1 . . . . . . Used . | . . . . . . . . . . . . Hacking Detections 14 | . 1 . . . 8 2 3 . . . . Full Trace Events 3 | . 1 . . . . 1 1 . . . . Feedback Events . | . . . . . . . . . . . . Feedback Blocked . | . . . . . . . . . . . . Robot Schematics Acquired . | . . . . . . . . . . . . Robots Built . | . . . . . . . . . . . . Authchips . | . . . . . . . . . . . . Time . | . . . . . . . . . . . . Total Robot Build Rating . | . . . . . . . . . . . . Part Schematics Acquired 7 | . . . . . 5 . 2 . . . . Parts Built 1 | . . . . . . 1 . . . . . Authchips . | . . . . . . . . . . . . Time 73 | . . . . . . 73 . . . . . Total Part Build Rating 3 | . . . . . . 3 . . . . . Parts Repaired 1 | . . . . . 1 . . . . . . Time 76 | . . . . . 76 . . . . . . Parts Recycled . | . . . . . . . . . . . . Recycled Matter . | . . . . . . . . . . . . Retrieved Matter . | . . . . . . . . . . . . Retrieved Components 3 | . . . . . . . 3 . . . . Parts Scanalyzed 7 | . . . . . 5 . 2 . . . . Part Schematics Acquired 7 | . . . . . 5 . 2 . . . . Parts Damaged 2 | . . . . . 1 . 1 . . . . Bothacking | -11 -10 -10 -10 -9 -8 -7 -6 -6 -6 -6 -5 ------------ Run | Yrd Mat Min Exi Min Mat Fac Fac Low Low Zio Pro Used RIF Installer . | . . . . . . . . . . . . Robots Hacked . | . . . . . . . . . . . . Non-combat . | . . . . . . . . . . . . Combat . | . . . . . . . . . . . . Robot Hacks Applied . | . . . . . . . . . . . . Relay Couplers Released . | . . . . . . . . . . . . Fabnet Peak Effective % . | . . . . . . . . . . . . Robots Rewired 1 | . . . . . . . . 1 . . . Allies Hacked . | . . . . . . . . . . . . Hacks Repelled . | . . . . . . . . . . . . Allies | -11 -10 -10 -10 -9 -8 -7 -6 -6 -6 -6 -5 -------- Run | Yrd Mat Min Exi Min Mat Fac Fac Low Low Zio Pro Total Allies 6 | . . . . 3 . . . 1 . 2 . Largest Group 3 | . . . . 3 3 . . 1 . 2 2 Highest-Rated Group 53 | . . . . 40 40 . . 29 . 53 53 Highest-Rated Ally 39 | . . . . 16 16 . . 29 . 39 39 Total Orders . | . . . . . . . . . . . . Ally Attacks 38 | . . . . . 28 . . 5 . . 5 Total Damage 456 | . . . . . 296 . . 77 . . 83 Kills 7 | . . . . . 4 . . 2 . . 1 Allies Corrupted . | . . . . . . . . . . . . Allies Melted 1 | . . . . . . . . 1 . . . Intel | -11 -10 -10 -10 -9 -8 -7 -6 -6 -6 -6 -5 ------- Run | Yrd Mat Min Exi Min Mat Fac Fac Low Low Zio Pro Robot Analysis Total . | . . . . . . . . . . . . Derelict Logs Recovered 6 | . . 1 . 2 . . . 1 1 1 . Drone Launches . | . . . . . . . . . . . . Drone Recoveries . | . . . . . . . . . . . . Exploration | -11 -10 -10 -10 -9 -8 -7 -6 -6 -6 -6 -5 ------------- Run | Yrd Mat Min Exi Min Mat Fac Fac Low Low Zio Pro Turns Passed 11022 | 150 371 690 371 1037 3154 551 1085 1304 250 1686 373 Spaces Moved 5686 | 56 170 341 230 397 1266 191 472 829 193 1261 280 Core 36 | 4 . . . . 1 . . 31 . . . Treads 1630 | 52 170 341 230 397 379 . . 61 . . . Legs . | . . . . . . . . . . . . Wheels 2181 | . . . . . 423 . . 24 193 1261 280 Hover . | . . . . . . . . . . . . Flight 1839 | . . . . . 463 191 472 713 . . . Fastest Speed 50 | 50 160 160 160 160 115 251 167 50 130 130 115 Average Speed 169 | 152 160 160 160 242 206 251 185 144 130 130 117 Slowest Speed 1850 | 160 160 160 160 320 1850 251 467 450 130 130 130 Overloaded Moves . | . . . . . . . . . . . . Propulsion Burnouts . | . . . . . . . . . . . . Robots Hopped . | . . . . . . . . . . . . Cave-ins Triggered . | . . . . . . . . . . . . Exploration Rate (%) 53 | 5 30 82 61 83 87 7 14 89 44 84 56 Regions Visited 11 Branch Regions 7 Pre-discovered Areas 4 | . . . . . . . . 1 . 3 . Known Exits Taken 4 | . . . . . 1 . 1 1 1 . . Unknown Exits Taken 7 | 1 1 1 1 1 . 1 . . . 1 . Scrap Searched 9 | . . 1 . 1 . . . 6 . 1 . Spaces Dug 8 | . . . . . 8 . . . . . . Terrain Destroyed 18 | . . . . . 18 . . . . . . Melee 8 | . . . . . 8 . . . . . . Projectile . | . . . . . . . . . . . . AOE 10 | . . . . . 10 . . . . . . Terrain Rammed . | . . . . . . . . . . . . Walls Destroyed . | . . . . . . . . . . . . Machines Disabled . | . . . . . . . . . . . . Actions | -11 -10 -10 -10 -9 -8 -7 -6 -6 -6 -6 -5 --------- Run | Yrd Mat Min Exi Min Mat Fac Fac Low Low Zio Pro Total 6631 | 84 216 466 233 429 1624 237 618 904 192 1311 317 Wait 286 | . . 113 . . 98 18 22 8 . 18 9 Move 5675 | 55 169 340 229 396 1265 190 471 828 192 1260 280 Hop . | . . . . . . . . . . . . Pick Up 122 | 4 9 1 1 3 52 1 17 16 . 12 6 Fast Attach 38 | 6 2 . . . 11 1 1 9 . 4 4 Attach 46 | . . . 1 1 18 6 11 7 . . 2 Detach 19 | . 1 . . . 8 2 1 2 . 4 1 Swap 27 | . 1 . 1 2 16 1 1 1 . 4 . Drop 83 | . 4 1 1 2 45 . 10 6 . 9 5 Fire 176 | 19 30 11 . 25 91 . . . . . . Melee 121 | . . . . . 20 18 48 25 . . 10 Ram . | . . . . . . . . . . . . Kick . | . . . . . . . . . . . . Crush . | . . . . . . . . . . . . Escape Stasis 36 | . . . . . . . 36 . . . . Rewire 2 | . . . . . . . . 2 . . . Trap . | . . . . . . . . . . . . Miscellaneous . | . . . . . . . . . . . . Route ------- -11/Scrapyard -10/Materials -10/Mines (discovered 3 exits: [*Mat x2] / *Exi) -10/Exiles -9/Mines -8/Materials (discovered 3 exits: *Fac x3) -7/Factory -6/Factory -6/Lower Caves -6/Lower Caves -6/Zion -5/Proximity Caves (discovered 1 exit: *Fac) History --------- Turn | Location | Event 27 | -11/Scrapyard | Discovered new exit (range 15) 151 | -11/Scrapyard | Entered Materials 304 | -10/Materials | Build established: Mutant 471 | -10/Materials | Discovered new exit (range 7) 522 | -10/Materials | Entered Mines 572 | -10/Mines | Discovered new exit (range 8) 620 | -10/Mines | Learned location of 1 exit from Materials 811 | -10/Mines | Found the Drone Emporium 822 | -10/Mines | Found Prototype Device 896 | -10/Mines | Assembled infested the area 1027 | -10/Mines | Discovered new exit (range 6) 1204 | -10/Mines | Deemed a non-threat by the Exiles lab entrance 1205 | -10/Mines | Discovered new exit (range 5) 1212 | -10/Mines | Entered Exiles 1251 | -10/Exiles | Met 8R-AWN 1280 | -10/Exiles | Met EX-HEX 1321 | -10/Exiles | Met EX-BIN 1353 | -10/Exiles | Aligned with FarCom system 1355 | -10/Exiles | Given EX-Vault access code 1392 | -10/Exiles | Opened EX-Vault 1404 | -10/Exiles | Identified Sensor Drone Bay 1408 | -10/Exiles | Found Longsword +1 1442 | -10/Exiles | Warned to stay clear of 0b10 Research branches 1492 | -10/Exiles | Met EX-DEC 1562 | -10/Exiles | Discovered new exit (range 14) 1583 | -10/Exiles | Left Exiles lab with Longsword +1 1583 | -10/Exiles | Entered Mines 1709 | -9/Mines | Received a Rocket Launcher from a helpful Derelict 1739 | -9/Mines | Found a hidden stash of uninstalled traps 1903 | -9/Mines | Learned Materials trap positions 2533 | -9/Mines | Core integrity fell below 50% 2559 | -9/Mines | Discovered new exit (range 8) 2604 | -9/Mines | Assisted by bots powering up and referring to "LRC-V3" 2620 | -9/Mines | Entered Materials 2620 | -8/Materials | Accompanied by 3 allies 2620 | -8/Materials | Evolved 4 slots: Propulsion x2, Utility x2 2621 | -8/Materials | Identified exit to Factory 2623 | -8/Materials | Loaded intel: 23 trap records 2918 | -8/Materials | Discovered exit to Factory (range 16) 2929 | -8/Materials | Build established: Scavenger-Mutant 3567 | -8/Materials | Lost 3 parts (1p2u) 3733 | -8/Materials | Lost 3 parts (1p2w) 4054 | -8/Materials | Build established: Mutant 4254 | -8/Materials | Repaired Broken Imp. VTOL Module 5774 | -8/Materials | Entered Factory 5774 | -7/Factory | Evolved 2 slots: Propulsion x1, Utility x1 5980 | -7/Factory | Fabricated Hacking Suite? 6278 | -7/Factory | Discovered new exit (range 5) 6325 | -7/Factory | Entered another Factory area 6325 | -6/Factory | Evolved 2 slots: Propulsion x2 7104 | -6/Factory | Garrison activated, responded to threat 7211 | -6/Factory | Lost 5 parts (3n2u) 7346 | -6/Factory | Lost 4 parts (2n1u1w) 7400 | -6/Factory | Discovered new exit (range 4) 7407 | -6/Factory | Identified exit to Lower Caves 7410 | -6/Factory | Entered Lower Caves 7418 | -6/Lower Caves | Lost 3 parts (1p2u) 7994 | -6/Lower Caves | Attracted the attention of an 0b10 outpost 8047 | -6/Lower Caves | Lost 3 parts (2n1u) 8351 | -6/Lower Caves | Build established: Hacker-Mutant 8427 | -6/Lower Caves | Core integrity fell below 50% 8449 | -6/Lower Caves | Core integrity fell below 20% 8460 | -6/Lower Caves | Lost 5 parts (1p2n2w) 8698 | -6/Lower Caves | Discovered new exit (range 3) 8700 | -6/Lower Caves | Identified exit to Lower Caves 8714 | -6/Lower Caves | Entered another Lower Caves area 8722 | -6/Lower Caves | Identified exit to Zion 8838 | -6/Lower Caves | Encountered a Warlord checkpoint 8961 | -6/Lower Caves | Spotted B-75 Beast 8964 | -6/Lower Caves | Entered Zion 8977 | -6/Zion | Given A8's code to call for help 9010 | -6/Zion | Discovered new exit (range 21) 9132 | -6/Zion | Found Prototype Processor 9133 | -6/Zion | Identified Exp. Terrain Scan Processor 9304 | -6/Zion | Found Relay Coupler [Programmer] 9338 | -6/Zion | Learned Factory stockpile data 9432 | -6/Zion | Gained Derelict followers 9487 | -6/Zion | Given the Hacking Drone Bay 9488 | -6/Zion | Found Prototype Device 9615 | -6/Zion | Rebuked by Imprinter 9692 | -6/Zion | Identified Hacking Drone Bay 9752 | -6/Zion | Found Prototype Processor 9752 | -6/Zion | Identified Exp. Targeting Computer 9756 | -6/Zion | Found Prototype Hackware 9756 | -6/Zion | Identified Exp. Hacking Suite 9762 | -6/Zion | Found Prototype Processor 9762 | -6/Zion | Identified Exp. Core Analyzer 9766 | -6/Zion | Found Prototype Processor 9766 | -6/Zion | Identified Spectral Analyzer 9866 | -6/Zion | Found CR-A16's Pointy Stick 9971 | -6/Zion | Visited the Megawrench Repair Shop 9973 | -6/Zion | Megawrench repaired 8 parts 10282 | -6/Zion | Found Relay Coupler [Programmer] 10290 | -6/Zion | Found Relay Coupler [Programmer] 10305 | -6/Zion | Found Relay Coupler [Programmer] 10650 | -6/Zion | Entered Proximity Caves 10650 | -5/Proximity Caves | Accompanied by 2 allies 10651 | -5/Proximity Caves | Identified exit to Factory 10757 | -5/Proximity Caves | Found Imp. Powered Armor 10792 | -5/Proximity Caves | Spotted B-75 Beast 11023 | -5/Proximity Caves | Destroyed by G-50 Soldier with Heavy Laser Last Messages --------------- 10753_ Discarded Spectral Analyzer. 10753_ Acquired Adv. Force Field. 10756_ Transport Network Coupler fries itself beyond repair. 10757_ Med. Treads fries itself beyond repair. 10757_ Acquired Imp. Powered Armor. 10760_ Acquired Prototype Device. 10760_ Identified Prc. Energy Filter. 10762_ Dropped Prc. Energy Filter. 10763_ Acquired Imp. Propulsion Shielding. 10766_ Dropped Microactuators. 10766_ Acquired Imp. Transmission Jammer. 10774_ Acquired 37 matter. 10778_ G-50 Soldier destroyed. 10782_ Dropped Lgt. Nuclear Core. 10782_ Acquired Lgt. Angular Momentum Engine. 10802_ Knocked back. 10805_ Lgt. Nuclear Core destroyed. 10962_ Acquired Imp. Deuterium Engine. 11020_ Imp. Propulsion Shielding destroyed. Map ----- +----------------------------------------------------+ | ??????# # ##??#####??#####?????##?????????????? | | ????### #### #?## ##???# #?????????????? | | ????# ### ## #?# ##?# #?????????????? | | ##??## #?# #?# ## ##????????????? | | #??# ### #### #????????????? | | ?## ## #### #????????????? | | ## ### ### #????????????? | | ## #### ##????????????? | | #### ##?????????????? | | #?###??????????????? | | #??????????????????? | | ## #??????????????????? | | ####### ##??????????????????? | | ## #????# #???????????????????? | | # ### #????# ####???????????????????? | | ## ## ##???## ##??????????????????????? | | ## ## #???## #???????????????????????? | | # ### #### ######??????????????????? | | #### #??????????????????? | | #?# #??????????????????? | | # ### #### ##?????????????????? | | ### ####???? #?????????????????? | | ## ######## ##????????????????? | | g #????????????????? | | ## ### g #??????????????? | | #### ???## ###@## #??????????????? | | #??? ## ?????## ##?# #????? #??????????????? | | ????# ###???????###??# #??????????????????????? | | ?????###?????????????? ??????????????????????? | | ??????????????????????# ??????????????????????? | | ??????????????????????#